fUSD/lending_fUSD_20260108
["ID","MTS","AMOUNT","RATE_DAILY","PERIOD"]
[400835827,1767840881527,-500.0,0.00013237,2]
[400835828,1767840881560,-375.22642783,0.00013237,2]
[400835829,1767840881591,-500.0,0.00013237,2]
[400835830,1767840881621,-547.04255127,0.00013237,2]
[400835831,1767840881653,-592.34303363,0.00013237,2]
[400835832,1767840881682,-500.0,0.00013237,2]
[400835833,1767840881711,-500.0,0.00013237,2]
[400835834,1767840881741,-500.0,0.00013237,2]
[400835835,1767840881769,-500.0,0.00013237,2]
[400835836,1767840881865,-500.0,0.00013237,2]
[400835837,1767840881897,-549.48276901,0.00013237,2]
[400835838,1767840881927,-231.40810775,0.00013237,2]
[400835839,1767840882202,-108.81309735,0.00013238,2]
[400835840,1767840882218,-231.40810775,0.00013238,2]
[400835841,1767840882232,-7438.22824648,0.00013238,2]
[400835844,1767840937378,-236.5514,0.00013138,2]
[400835845,1767840937402,-93.92645856,0.00013138,2]
[400835846,1767840941030,-71.35592616,0.00013138,2]
[400835847,1767840941056,-238.23641846,0.00013138,2]
[400835848,1767840943195,-176.82092839,0.00013138,2]
[400835849,1767840949632,-270.83112151,0.00013138,2]
[400835850,1767840951257,-170.71684389,0.00013138,2]
[400835851,1767840951281,-9.23543514,0.00013138,2]
[400835852,1767840958228,-317.37674839,0.00013138,2]
[400835853,1767840960274,-161.72375284,0.00013138,2]
[400835855,1767840965389,-226.1822912,0.00013138,2]
[400835856,1767840968380,-383.1415251,0.00013138,2]
[400835857,1767840972965,-258.94882433,0.00013138,2]
[400835858,1767840976339,-222.97836515,0.00013138,2]
[400835859,1767840980861,-275.4372369,0.00013138,2]
[400835860,1767840982796,-169.92921408,0.00013138,2]
[400835861,1767840984822,-195.25262585,0.00013138,2]
[400835862,1767840986343,-292.43511023,0.00013138,2]
[400835863,1767840988688,-302.0,0.00013138,2]
[400835864,1767840991493,-429.16887849,0.00013138,2]
[400835865,1767840997034,-177.84001201,0.00013138,2]
[400835866,1767840999882,-297.97604525,0.00013138,2]
[400835867,1767841004526,-195.0,0.00013138,2]
[400835868,1767841007905,-195.0,0.00013138,2]
[400835873,1767841027379,-150.0,0.00013137,2]
[400835874,1767841027405,-350.0,0.00013138,2]
[400835875,1767841029064,-850.34518633,0.00013138,2]
[400835876,1767841032310,-172.73298591,0.00013138,2]
[400835877,1767841033938,-188.87067386,0.00013138,2]
[400835878,1767841037191,-183.97092427,0.00013138,2]
[400835879,1767841040088,-302.0,0.00013138,2]
[400835885,1767841053014,-10000.01,0.00013138,2]
[400835886,1767841053846,-3302.77516852,0.00013138,2]
[400835887,1767841054033,-3394.45966296,0.00013138,2]
[400835888,1767841054059,-10000.01,0.00013138,2]
[400835889,1767841054074,-2951.02144354,0.00013138,2]
[400835890,1767841054083,-172.14876833,0.00013138,2]
[400835891,1767841054096,-250.0,0.00013187,2]
[400835892,1767841054106,-250.0,0.00013219,2]
[400835893,1767841054123,-151.0,0.0001323,2]
[400835894,1767841054140,-200.0,0.0001323,2]
[400835895,1767841054155,-151.0,0.0001323,2]
[400835896,1767841054168,-151.0,0.0001323,2]
[400835897,1767841054184,-151.0,0.0001323,2]
[400835898,1767841054198,-151.0,0.0001323,2]
[400835899,1767841054213,-151.0,0.0001323,2]
[400835900,1767841054228,-151.0,0.0001323,2]
[400835901,1767841054242,-151.0,0.0001323,2]
[400835902,1767841054253,-151.0,0.0001323,2]
[400835903,1767841054271,-151.0,0.0001323,2]
[400835904,1767841054288,-151.0,0.0001323,2]
[400835905,1767841054304,-151.0,0.0001323,2]
[400835906,1767841054319,-151.0,0.0001323,2]
[400835907,1767841054336,-151.0,0.0001323,2]
[400835908,1767841054350,-151.0,0.0001323,2]
[400835909,1767841054368,-202.84026902,0.0001323,2]
[400835910,1767841054383,-151.0,0.0001323,2]
[400835911,1767841054399,-151.0,0.0001323,2]
[400835912,1767841054414,-151.0,0.0001323,2]
[400835913,1767841054430,-151.0,0.0001323,2]
[400835914,1767841054447,-151.0,0.0001323,2]
[400835915,1767841054464,-500.0,0.0001323,2]
[400835916,1767841054478,-151.0,0.0001323,2]
[400835917,1767841054490,-151.0,0.0001323,2]
[400835918,1767841054503,-549.48276901,0.00013237,2]
[400835919,1767841054522,-612.65849948,0.00013237,2]
[400835920,1767841054535,-989.85825062,0.00013237,2]
[400835921,1767841054554,-7.65938375,0.00013237,2]
[400835922,1767841054568,-997.51763437,0.00013237,2]
[400835923,1767841054586,-997.51763437,0.00013237,2]
[400835924,1767841054598,-997.51763437,0.00013237,2]
[400835925,1767841054610,-997.51763437,0.00013237,2]
[400835926,1767841054641,-997.51763437,0.00013237,2]
[400835927,1767841054655,-997.51763437,0.00013237,2]
[400835928,1767841054669,-997.51763437,0.00013237,2]
[400835929,1767841054684,-997.51763437,0.00013237,2]
[400835930,1767841054697,-997.51763437,0.00013237,2]
[400835931,1767841054711,-997.51763437,0.00013237,2]
[400835932,1767841054725,-17.17427255,0.00013237,2]
[400835933,1767841054746,-980.34336182,0.00013237,2]
[400835934,1767841054760,-997.51763437,0.00013237,2]
[400835935,1767841054773,-997.51763437,0.00013237,2]
[400835936,1767841054787,-997.51763437,0.00013237,2]
[400835937,1767841054801,-997.51763437,0.00013237,2]
[400835938,1767841054814,-997.51763437,0.00013237,2]
[400835939,1767841054827,-997.51763437,0.00013237,2]
[400835940,1767841054840,-997.51763437,0.00013237,2]
[400835941,1767841054854,-997.51763437,0.00013237,2]
[400835942,1767841054867,-997.51763437,0.00013237,2]
[400835943,1767841054880,-42.00792885,0.00013237,2]
[400835944,1767841054910,-955.50970552,0.00013237,2]
[400835945,1767841054926,-997.51763437,0.00013237,2]
[400835946,1767841054939,-997.51763437,0.00013237,2]
[400835947,1767841054952,-997.51763437,0.00013237,2]
[400835948,1767841054965,-997.51763437,0.00013237,2]
[400835949,1767841054978,-997.51763437,0.00013237,2]
[400835950,1767841054992,-997.51763437,0.00013237,2]
[400835951,1767841055007,-997.51763437,0.00013237,2]
[400835952,1767841055021,-997.51763437,0.00013237,2]
[400835953,1767841055034,-997.51763437,0.00013237,2]
[400835954,1767841055048,-66.84158515,0.00013237,2]
[400835955,1767841055074,-930.67604922,0.00013237,2]
[400835956,1767841055088,-997.51763437,0.00013237,2]
[400835957,1767841055102,-997.51763437,0.00013237,2]
[400835958,1767841055115,-997.51763437,0.00013237,2]
[400835959,1767841055130,-997.51763437,0.00013237,2]
[400835960,1767841055144,-997.51763437,0.00013237,2]
[400835961,1767841055159,-997.51763437,0.00013237,2]
[400835962,1767841055173,-997.51763437,0.00013237,2]
[400835963,1767841055187,-997.51763437,0.00013237,2]
[400835964,1767841055200,-997.51763437,0.00013237,2]
[400835965,1767841055213,-91.67524145,0.00013237,2]
[400835966,1767841055916,-151.0,0.0001323,2]
[400835967,1767841055961,-151.0,0.0001323,2]
[400835968,1767841056002,-151.0,0.0001323,2]
[400835969,1767841056047,-905.84239292,0.00013237,2]
[400835970,1767841056091,-997.51763437,0.00013237,2]
[400835971,1767841056137,-997.51763437,0.00013237,2]
[400835972,1767841056182,-997.51763437,0.00013237,2]
[400835973,1767841056232,-299.70177357,0.00013237,2]
[400835974,1767841056416,-151.0,0.0001323,2]
[400835975,1767841056429,-546.8158608,0.00013237,2]
[400835976,1767841059085,-151.0,0.0001323,2]
[400835977,1767841059123,-151.0,0.0001323,2]
[400835978,1767841059160,-151.0,0.0001323,2]
[400835979,1767841059199,-151.0,0.00013237,2]
[400835980,1767841059238,-997.51763437,0.00013237,2]
[400835981,1767841059279,-997.51763437,0.00013237,2]
[400835982,1767841059324,-997.51763437,0.00013237,2]
[400835983,1767841059376,-997.51763437,0.00013237,2]
[400835984,1767841059512,-997.51763437,0.00013237,2]
[400835985,1767841059556,-997.51763437,0.00013237,2]
[400835986,1767841059599,-997.51763437,0.00013237,2]
[400835987,1767841059641,-997.51763437,0.00013237,2]
[400835988,1767841059683,-997.51763437,0.00013237,2]
[400835989,1767841059800,-200.0,0.0001323,2]
[400835990,1767841059849,-997.51763437,0.00013237,2]
[400835991,1767841059893,-997.51763437,0.00013237,2]
[400835992,1767841059935,-997.51763437,0.00013237,2]
[400835993,1767841059978,-997.51763437,0.00013237,2]
[400835994,1767841060018,-382.92978589,0.00013237,2]
[400835995,1767841060055,-300.0,0.00013237,2]
[400835996,1767841060831,-1200.0,0.00013237,2]
[400835997,1767841060919,-151.0,0.0001323,2]
[400835998,1767841061323,-151.0,0.0001323,2]
[400835999,1767841061334,-788.7119346,0.00013238,2]
[400836000,1767841061349,-7600.01,0.00013238,2]
[400836001,1767841061371,-151.0,0.00013238,2]
[400836002,1767841061385,-9698.01,0.00013238,2]
[400836003,1767841061399,-10000.01,0.00013238,2]
[400836004,1767841061417,-10000.01,0.00013238,2]
[400836006,1767841077996,-571.07020818,0.00013138,2]
[400836007,1767841078029,-994.1925756,0.00013237,2]
[400836008,1767841078063,-994.1925756,0.00013237,2]
[400836009,1767841078099,-994.1925756,0.00013237,2]
[400836010,1767841078132,-994.1925756,0.00013237,2]
[400836011,1767841078223,-904.32897884,0.00013237,2]
[400836012,1767841078266,-89.86359676,0.00013237,2]
[400836013,1767841078302,-994.1925756,0.00013237,2]
[400836014,1767841078336,-994.1925756,0.00013237,2]
[400836015,1767841078370,-994.1925756,0.00013237,2]
[400836016,1767841078404,-994.1925756,0.00013237,2]
[400836017,1767841078437,-872.54962608,0.00013237,2]
[400836018,1767841078530,-121.64294952,0.00013237,2]
[400836019,1767841078575,-994.1925756,0.00013237,2]
[400836020,1767841078612,-994.1925756,0.00013237,2]
[400836021,1767841078647,-994.1925756,0.00013237,2]
[400836022,1767841078681,-994.1925756,0.00013237,2]
[400836023,1767841078714,-808.99092056,0.00013237,2]
[400836024,1767841078805,-185.20165504,0.00013237,2]
[400836025,1767841078838,-994.1925756,0.00013237,2]
[400836026,1767841078874,-994.1925756,0.00013237,2]
[400836027,1767841078912,-994.1925756,0.00013237,2]
[400836028,1767841078946,-994.1925756,0.00013237,2]
[400836029,1767841078977,-681.87350952,0.00013237,2]
[400836030,1767841079686,-312.31906608,0.00013237,2]
[400836031,1767841079696,-306.84460456,0.00013237,2]
[400836032,1767841080989,-687.34797104,0.00013237,2]
[400836034,1767841081023,-994.1925756,0.00013237,2]
[400836035,1767841081061,-994.1925756,0.00013237,2]
[400836037,1767841081102,-994.1925756,0.00013237,2]
[400836039,1767841081138,-994.1925756,0.00013237,2]
[400836041,1767841081236,-994.1925756,0.00013237,2]
[400836042,1767841081269,-994.1925756,0.00013237,2]
[400836043,1767841081306,-994.1925756,0.00013237,2]
[400836044,1767841081339,-994.1925756,0.00013237,2]
[400836045,1767841081447,-671.77345312,0.00013238,2]
[400836046,1767841081461,-2046.4693952,0.00013238,2]
[400836048,1767841084239,-10000.01,0.00013238,2]
[400836049,1767841084514,-250.0,0.00013237,2]
[400836050,1767841084550,-9500.01,0.00013238,2]
[400836051,1767841084722,-10000.01,0.00013238,2]
[400836052,1767841087371,-10000.01,0.00013238,2]
[400836053,1767841087578,-10000.01,0.00013238,2]
[400836054,1767841087675,-10000.01,0.00013238,2]
[400836055,1767841091881,-10000.01,0.00013238,2]
[400836056,1767841092155,-10000.01,0.00013238,2]
[400836063,1767841100239,-10000.01,0.00013238,2]
[400836083,1767841147391,-445.77045756,0.00013237,2]
[400836084,1767841150043,-48.42211801,0.00013237,2]
[400836085,1767841150069,-176.85403422,0.00013237,2]
[400836086,1767841153430,-302.08022963,0.00013237,2]
[400836090,1767841154915,-21.06573615,0.00013237,2]
[400836091,1767841154941,-187.20415455,0.00013238,2]
[400836092,1767841157434,-10000.01,0.00013238,2]
[400836093,1767841159187,-485.4298969,0.00013238,2]
[400836096,1767841163354,-2500.0,0.00013138,2]
[400836097,1767841163424,-5000.01,0.00013238,2]
[400836098,1767841164837,-281.49733174,0.00013238,2]
[400836099,1767841166996,-328.97649477,0.00013238,2]
[400836100,1767841168817,-327.35102196,0.00013238,2]
[400836101,1767841169929,-183.51205855,0.00013238,2]
[400836107,1767841172944,-195.0,0.00013238,2]
[400836108,1767841174472,-355.7301093,0.00013238,2]
[400836109,1767841176631,-152.44,0.00013238,2]
[400836110,1767841178636,-325.52564244,0.00013238,2]
[400836111,1767841180631,-604.94804546,0.00013238,2]
[400836116,1767841192316,-302.0,0.00013238,2]
[400836122,1767841196984,-240.47638426,0.00013238,2]
[400836135,1767841222894,-168.00794145,0.00013138,2]
[400836139,1767841237393,-500.0,0.00012998,2]
[400836140,1767841243480,-11.22,0.00012998,2]
[400836141,1767841243510,-212.70553067,0.00013138,2]
[400836142,1767841243538,-172.14876831,0.00013138,2]
[400836143,1767841243567,-172.14876831,0.00013138,2]
[400836144,1767841243597,-300.0,0.00013237,2]
[400836145,1767841243625,-300.0,0.00013237,2]
[400836146,1767841243652,-150.0,0.00013237,2]
[400836147,1767841243680,-1200.0,0.00013237,2]
[400836148,1767841243814,-4963.56386542,0.00013238,2]
[400836149,1767841246358,-10000.01,0.00013238,2]
[400836160,1767841280233,-2973.55,0.00013083,2]
[400836161,1767841280263,-300.0,0.00013237,2]
[400836162,1767841280321,-3452.91,0.00013238,2]
[400836163,1767841286147,-10000.01,0.00013238,2]
[400836164,1767841297899,-250.924,0.00012973,2]
[400836165,1767841297923,-14.81509641,0.00012973,2]
[400836167,1767841301268,-500.0,0.00012973,2]
[400836169,1767841303295,-295.94492494,0.00012973,2]
[400836170,1767841304714,-3793.86597865,0.00012973,2]
[400836171,1767841304749,-2412.2780427,0.0001303,2]
[400836172,1767841305808,-1544.2519573,0.0001303,2]
[400836173,1767841305872,-6911.5060854,0.00013238,2]
[400836174,1767841310632,-647.10539007,0.00013237,2]
[400836175,1767841310672,-8705.79921986,0.00013238,2]
[400836178,1767841310732,-10000.01,0.00013238,2]
[400836216,1767841364469,1000.0,0.00012798,2]
[400836217,1767841364788,1000.0,0.00012553,2]
[400836218,1767841373551,-237.49070041,0.00012934,2]
[400836219,1767841375883,-344.84854812,0.00012934,2]
[400836220,1767841379035,-157.9150788,0.00012934,2]
[400836223,1767841387705,-259.74567267,0.00012934,2]
[400836224,1767841387728,-113.54799733,0.00012989,2]
[400836225,1767841390397,-250.0,0.00012962,2]
[400836226,1767841390419,-55.03450943,0.00012989,2]
[400836227,1767841395043,-341.157111,0.00012869,2]
[400836228,1767841395066,-14.89470957,0.00012989,2]
[400836234,1767841417297,-115.07849974,0.00012989,2]
[400836235,1767841417318,-384.92150026,0.00013,2]
[400836239,1767841421088,-293.31193474,0.00013,2]
[400836240,1767841423832,-192.03704288,0.00013,2]
[400836242,1767841425872,-129.72952212,0.00013,2]
[400836243,1767841425895,-59.28486289,0.00013,2]
[400836244,1767841436809,-170.71513711,0.00013,2]
[400836245,1767841436837,-500.11071458,0.00013,2]
[400836246,1767841436864,-1000.0,0.00013074,2]
[400836247,1767841436893,-300.0,0.00013137,2]
[400836248,1767841436923,-150.0,0.00013137,2]
[400836249,1767841436951,-2500.0,0.00013138,2]
[400836250,1767841438097,-758.35829662,0.00013138,2]
[400836251,1767841438176,-10000.01,0.00013138,2]
[400836264,1767841442795,-300.0,0.00013137,2]
[400836265,1767841442824,-2022.64032864,0.00013138,2]
[400836266,1767841442874,-5354.72934272,0.00013138,2]
[400836267,1767841443105,-203.73836143,0.00013138,2]
[400836268,1767841443136,-203.73836143,0.00013138,2]
[400836269,1767841443166,-550.83746402,0.00013237,2]
[400836270,1767841443200,-500.0,0.00013237,2]
[400836271,1767841443234,-500.0,0.00013237,2]
[400836272,1767841443271,-500.0,0.00013237,2]
[400836273,1767841443309,-500.0,0.00013237,2]
[400836274,1767841443343,-500.0,0.00013237,2]
[400836275,1767841443378,-500.0,0.00013237,2]
[400836276,1767841443418,-500.0,0.00013237,2]
[400836277,1767841443453,-500.0,0.00013237,2]
[400836278,1767841443649,-83.38162624,0.00013237,2]
[400836285,1767841509868,-596.3162,0.00013138,2]
[400836286,1767841509898,-2500.0,0.00013138,2]
[400836287,1767841509928,-253.8089814,0.00013138,2]
[400836288,1767841509958,-300.0,0.00013236,2]
[400836289,1767841509990,-1200.0,0.00013236,2]
[400836290,1767841510553,-299.7596372,0.00013237,2]
[400836291,1767841516475,-116.85873656,0.00013237,2]
[400836292,1767841516507,-500.0,0.00013237,2]
[400836293,1767841516540,-500.0,0.00013237,2]
[400836294,1767841516572,-500.0,0.00013237,2]
[400836295,1767841516606,-500.0,0.00013237,2]
[400836296,1767841516640,-500.0,0.00013237,2]
[400836297,1767841516674,-500.0,0.00013237,2]
[400836298,1767841516705,-500.0,0.00013237,2]
[400836299,1767841516737,-508.20992681,0.00013237,2]
[400836300,1767841516769,-500.0,0.00013237,2]
[400836301,1767841516800,-249.87267326,0.00013237,2]
[400836302,1767841517471,-250.12732674,0.00013237,2]
[400836303,1767841518964,-500.0,0.00013237,2]
[400836304,1767841518997,-500.0,0.00013237,2]
[400836305,1767841519028,-352.62726335,0.00013237,2]
[400836306,1767841519057,-500.0,0.00013237,2]
[400836307,1767841519086,-500.0,0.00013237,2]
[400836308,1767841519114,-500.0,0.00013237,2]
[400836309,1767841519144,-620.77420482,0.00013237,2]
[400836310,1767841519175,-500.0,0.00013237,2]
[400836311,1767841519204,-500.0,0.00013237,2]
[400836312,1767841519557,-1053.20706366,0.00013237,2]
[400836313,1767841522073,-10000.01,0.00013138,2]
[400836314,1767841522272,-4710.93199585,0.00013138,2]
[400836315,1767841522301,-150.54307196,0.00013237,2]
[400836316,1767841522338,-277.05986438,0.00013237,2]
[400836317,1767841522415,-250.0,0.00013237,2]
[400836318,1767841522443,-234.79954054,0.00013237,2]
[400836319,1767841522470,-200.0,0.00013237,2]
[400836320,1767841522500,-500.0,0.00013237,2]
[400836321,1767841522530,-151.0,0.00013237,2]
[400836322,1767841522559,-151.0,0.00013237,2]
[400836323,1767841522589,-151.0,0.00013237,2]
[400836324,1767841522622,-151.0,0.00013237,2]
[400836325,1767841522652,-151.0,0.00013237,2]
[400836326,1767841522681,-151.0,0.00013237,2]
[400836327,1767841522709,-151.0,0.00013237,2]
[400836328,1767841522739,-151.0,0.00013237,2]
[400836329,1767841522767,-151.0,0.00013237,2]
[400836330,1767841522796,-151.0,0.00013237,2]
[400836331,1767841522824,-151.0,0.00013237,2]
[400836332,1767841522949,-203.68375468,0.00013038,2]
[400836333,1767841523192,-4104.72716424,0.00013238,2]
[400836334,1767841523219,-203.68375468,0.00013238,2]
[400836335,1767841523241,-9592.64249064,0.00013238,2]
[400836336,1767841528114,-10000.01,0.00013238,2]
[400836337,1767841528293,-10000.01,0.00013238,2]
[400836338,1767841528403,-10000.01,0.00013238,2]
[400836339,1767841528505,-10000.01,0.00013238,2]
[400836345,1767841612409,-179.33102255,0.00013138,2]
[400836346,1767841616239,-318.99052199,0.00013138,2]
[400836347,1767841618892,-237.95861467,0.00013138,2]
[400836348,1767841621604,-208.2668177,0.00013138,2]
[400836350,1767841624911,-319.55677254,0.00013138,2]
[400836351,1767841626178,-2105.90345055,0.00013138,2]
[400836352,1767841626368,-5788.2030989,0.00013138,2]
[400836353,1767841628735,-268.00937545,0.00013138,2]
[400836354,1767841631033,-2060.81477435,0.00013138,2]
[400836355,1767841631057,-5878.3804513,0.00013138,2]
[400836356,1767841631332,-207.44371838,0.00013138,2]
[400836357,1767841635160,-174.54690617,0.00013138,2]
[400836358,1767841637385,-200.0,0.00013138,2]
[400836364,1767841649582,-166.66,0.00013085,2]
[400836365,1767841649611,-1918.00937545,0.00013138,2]
[400836366,1767841649645,-326.27279092,0.00013138,2]
[400836367,1767841649675,-388.16540666,0.00013138,2]
[400836368,1767841649705,-388.16540666,0.00013138,2]
[400836369,1767841649734,-169.2059876,0.00013147,2]
[400836370,1767841649762,-200.0,0.0001323,2]
[400836371,1767841649791,-500.0,0.0001323,2]
[400836372,1767841649820,-151.0,0.0001323,2]
[400836373,1767841649853,-151.0,0.0001323,2]
[400836374,1767841649882,-151.0,0.0001323,2]
[400836375,1767841649912,-151.0,0.0001323,2]
[400836376,1767841650135,-679.05206542,0.00013237,2]
[400836377,1767841651339,-151.0,0.0001323,2]
[400836378,1767841651362,-15.66,0.0001323,2]
[400836379,1767841653511,-135.34,0.0001323,2]
[400836380,1767841653535,-148.87771957,0.0001323,2]
[400836381,1767841655632,-2.12228043,0.0001323,2]
[400836382,1767841655666,-151.0,0.0001323,2]
[400836383,1767841655696,-151.0,0.0001323,2]
[400836384,1767841655726,-151.0,0.0001323,2]
[400836385,1767841655756,-151.0,0.0001323,2]
[400836386,1767841655784,-320.94793458,0.00013237,2]
[400836387,1767841655813,-150.0,0.00013237,2]
[400836388,1767841655841,-154.0,0.00013237,2]
[400836389,1767841656446,-7537.86956998,0.00013238,2]
[400836390,1767841656948,-199.97442301,0.00013238,2]
[400836397,1767841703432,-203.43128444,0.00012908,2]
[400836398,1767841706196,-242.0811956,0.00012908,2]
[400836413,1767841714624,-351.97246794,0.00012908,2]
[400836414,1767841716008,-534.14261499,0.00012908,2]
[400836415,1767841718761,-212.515,0.00012908,2]
[400836416,1767841720505,-546.10582028,0.00012908,2]
[400836417,1767841722030,-300.0,0.00012908,2]
[400836419,1767841725805,-500.0,0.00012908,2]
[400836420,1767841728601,-621.67660694,0.00012908,2]
[400836421,1767841730728,-264.0,0.00012908,2]
[400836422,1767841732912,-426.91222496,0.00012908,2]
[400836423,1767841734972,-223.98433827,0.00012908,2]
[400836424,1767841737837,-393.55090306,0.00012908,2]
[400836425,1767841741925,-170.91286775,0.00012908,2]
[400836429,1767841744472,-332.49033583,0.00012908,2]
[400836430,1767841747751,-358.93138377,0.00012908,2]
[400836431,1767841749269,-404.0648565,0.00012908,2]
[400836432,1767841754759,-137.76809967,0.00012908,2]
[400836433,1767841754790,-385.58622481,0.00013137,2]
[400836434,1767841754848,-8953.30135104,0.00013137,2]
[400836437,1767841763723,-500.0,0.00013137,2]
[400836438,1767841763756,-500.0,0.00013137,2]
[400836439,1767841763790,-167.57888076,0.00013137,2]
[400836440,1767841763881,-7664.85223848,0.00013137,2]
[400836455,1767841786021,1852.42,0.00012671,2]
[400836485,1767841832164,-169.2059876,0.00013038,2]
[400836486,1767841832174,-257.0,0.00013038,2]
[400836487,1767841832184,-1170.95007216,0.00013127,2]
[400836488,1767841832194,-96.47799379,0.00013136,2]
[400836489,1767841832206,-203.52200621,0.00013136,2]
[400836490,1767841832215,-300.0,0.00013136,2]
[400836491,1767841832224,-190.62424802,0.00013136,2]
[400836492,1767841832236,-536.05188292,0.00013136,2]
[400836493,1767841832248,-473.32386906,0.00013136,2]
[400836494,1767841832257,-500.0,0.00013137,2]
[400836495,1767841832267,-500.0,0.00013137,2]
[400836496,1767841832277,-500.0,0.00013137,2]
[400836497,1767841832286,-500.0,0.00013137,2]
[400836498,1767841832296,-75.41478243,0.00013137,2]
[400836499,1767841832308,-109.12716095,0.00013137,2]
[400836500,1767841832318,-495.75769682,0.00013137,2]
[400836501,1767841832330,-529.67461947,0.00013137,2]
[400836502,1767841832340,-979.31163854,0.00013137,2]
[400836503,1767841832351,-568.84388156,0.00013137,2]
[400836504,1767841832361,-150.0,0.00013137,2]
[400836505,1767841832370,-259.10650377,0.00013138,2]
[400836506,1767841832389,-3153.54549759,0.00013138,2]
[400836507,1767841832400,-6449.77282621,0.00013138,2]
[400836508,1767841832412,-948.02646581,0.00013138,2]
[400836509,1767841832425,-1958.42417155,0.00013138,2]
[400836510,1767841832436,-2939.56562393,0.00013138,2]
[400836511,1767841832447,-397.84647269,0.00013138,2]
[400836512,1767841832458,-2151.7138018,0.00013138,2]
[400836513,1767841832469,-1516.48438079,0.00013138,2]
[400836514,1767841832480,-387.11639996,0.00013138,2]
[400836515,1767841832492,-1603.75891355,0.00013138,2]
[400836516,1767841832506,-3688.99362453,0.00013138,2]
[400836517,1767841832520,-1680.66735613,0.00013138,2]
[400836518,1767841832532,-297.04785907,0.00013138,2]
[400836519,1767841832543,-1023.31953828,0.00013138,2]
[400836520,1767841832554,-2170.13470182,0.00013138,2]
[400836521,1767841838368,-1851.7984858,0.00013138,2]
[400836522,1767841838476,-967522.67737672,0.00013138,2]
[400836523,1767841838485,-2500.0,0.00013138,2]
[400836524,1767841838496,-1000.0,0.00013237,2]
[400836525,1767841838506,-1000.0,0.00013238,2]
[400836526,1767841838519,-5884.67,0.00013238,2]
[400836527,1767841838529,-9999.99,0.00013238,2]
[400836529,1767841838538,-3815.75,0.00013238,2]
[400836531,1767841838547,-337.42,0.00013238,2]
[400836533,1767841838558,-299.99,0.00013238,2]
[400836535,1767841838567,-200.0,0.00013238,2]
[400836537,1767841838577,-1000.0,0.00013238,2]
[400836539,1767841838590,-1465.64,0.00013238,2]
[400836541,1767841838599,-999.99,0.00013238,2]
[400836543,1767841838609,-41616.36,0.00013238,2]
[400836545,1767841838619,-200.0,0.00013238,2]
[400836547,1767841838628,-151.0,0.00013238,2]
[400836549,1767841838639,-151.0,0.00013238,2]
[400836551,1767841838648,-200.0,0.00013238,2]
[400836553,1767841838657,-875.27078638,0.00013247,2]
[400836555,1767841838667,-64965.56,0.00013247,2]
[400836557,1767841838677,-150.99,0.00013247,2]
[400836559,1767841838687,-2095.37,0.00013247,2]
[400836561,1767841838699,-309.81,0.00013247,2]
[400836564,1767841838718,-9999.99,0.00013247,2]
[400836565,1767841838727,-150.99,0.00013247,2]
[400836568,1767841838736,-1197.41,0.00013247,2]
[400836569,1767841838746,-7905.49,0.00013247,2]
[400836572,1767841838755,-9999.99,0.00013247,2]
[400836573,1767841838765,-1178.68,0.00013247,2]
[400836575,1767841838774,-9999.99,0.00013247,2]
[400836577,1767841838783,-9999.99,0.00013247,2]
[400836579,1767841838793,-1186.44134713,0.00013315,2]
[400836581,1767841838802,-2107.0,0.00013326,2]
[400836583,1767841838812,-10485.9218373,0.00013328,2]
[400836586,1767841838822,-1100.0,0.00013348,2]
[400836588,1767841838831,-200.0,0.0001337,2]
[400836589,1767841838841,-200.0,0.0001337,2]
[400836591,1767841838850,-200.0,0.0001337,2]
[400836594,1767841838859,-2622.22,0.00013412,2]
[400836595,1767841838869,-1000.0,0.00013486,2]
[400836597,1767841838878,-200.0,0.00013504,2]
[400836600,1767841838888,-200.0,0.00013504,2]